bitfinex/quotes_SOLUSD_20240613
["timestamp","ask_amount","ask_price","bid_price","bid_amount"]
[1718282371256,100.0,150.42,150.33,8.68302935]
[1718282371458,100.0,150.44,150.33,8.68302935]
[1718282371834,100.0,150.44,150.34,0.17]
[1718282372035,100.0,150.46,150.35,21.9531]
[1718282372341,100.0,150.5,150.36,65.68]
[1718282372660,6.0368,150.58,150.36,65.51]
[1718282372661,100.0,150.46,150.36,65.51]
[1718282372967,100.0,150.49,150.39,2.4602]
[1718282373261,100.0,150.45,150.36,20.34]
[1718282373480,106.81004969,150.48,150.37,0.17]
[1718282373637,26.604087,150.49,150.39,0.17]
[1718282373841,26.604087,150.49,150.39,3.1402]
[1718282374057,100.0,150.5,150.39,0.68]
[1718282374369,100.0,150.5,150.39,3.1402]
[1718282374738,100.0,150.5,150.39,48.1402]
[1718282375038,100.0,150.52,150.4,2.46]
[1718282375238,100.0,150.52,150.41,3.1399]
[1718282375436,100.0,150.54,150.41,3.1399]
[1718282375641,100.0,150.54,150.43,0.17]
[1718282375970,126.593027,150.56,150.43,3.1394]
[1718282376138,100.0,150.54,150.45,0.17]
[1718282376448,100.0,150.5,150.44,22.2787]
[1718282377056,100.0,150.48,150.44,22.2787]
[1718282377234,100.0,150.46,150.37,21.6226]
[1718282377795,100.0,150.48,150.37,21.6226]
[1718282378098,100.0,150.5,150.38,2.4603]
[1718282378597,100.0,150.5,150.39,0.68]
[1718282378954,100.0,150.48,150.39,0.51]
[1718282379171,100.0,150.48,150.38,20.0]
[1718282379677,0.17,150.47,150.37,21.6226]
[1718282379975,100.0,150.48,150.37,21.6226]
[1718282380183,100.0,150.48,150.37,24.083]
[1718282380563,100.0,150.5,150.37,24.083]
[1718282380758,100.0,150.48,150.38,0.17]
[1718282381057,0.51,150.51,150.38,0.17]
[1718282381058,100.0,150.51,150.4,0.17]
[1718282381257,100.0,150.53,150.41,2.4599]
[1718282381473,100.0,150.5,150.42,0.51]
[1718282381659,100.0,150.5,150.4,0.51]
[1718282381957,100.0,150.5,150.41,0.17]
[1718282382189,100.0,150.53,150.4,2.9699]
[1718282382392,100.0,150.49,150.4,0.51]
[1718282382555,100.0,150.49,150.39,0.17]
[1718282382878,100.0,150.47,150.38,45.0]
[1718282383080,100.0,150.49,150.37,21.6226]
[1718282383385,100.0,150.47,150.37,21.6226]
[1718282384870,100.0,150.45,150.37,21.6226]
[1718282385078,100.0,150.47,150.37,21.6226]
[1718282385255,100.0,150.44,150.37,21.6226]
[1718282385466,45.0,150.46,150.37,21.6226]
[1718282385467,100.0,150.42,150.37,21.6226]
[1718282385670,100.0,150.44,150.37,15.526]
[1718282385882,145.0,150.46,150.37,15.526]
[1718282386076,100.0,150.46,150.37,15.526]
[1718282386577,100.17,150.48,150.37,15.526]
[1718282386968,100.17,150.48,150.38,0.34]
[1718282387163,100.0,150.48,150.38,0.34]
[1718282387475,100.0,150.53,150.41,0.17]
[1718282387781,100.0,150.51,150.41,0.17]
[1718282388193,100.0,150.5,150.41,0.17]
[1718282388485,6.79982421,150.53,150.4,6.1831]
[1718282388486,100.0,150.48,150.4,6.1831]
[1718282388863,100.0,150.5,150.4,6.1831]
[1718282389058,100.0,150.5,150.41,0.34]
[1718282389279,100.0,150.52,150.41,45.34]
[1718282389871,100.0,150.5,150.41,0.17]
[1718282390073,100.0,150.5,150.4,6.1831]
[1718282390595,100.0,150.48,150.4,6.1831]
[1718282391310,100.0,150.46,150.4,6.1831]
[1718282391898,100.0,150.48,150.4,6.1831]
[1718282392105,100.0,150.5,150.4,6.1831]
[1718282392578,100.0,150.48,150.4,6.1831]
[1718282392963,45.68,150.51,150.4,6.1831]
[1718282392964,100.0,150.5,150.4,6.1831]
[1718282393267,100.0,150.48,150.4,6.1831]
[1718282393871,100.0,150.5,150.41,0.17]
[1718282394091,100.0,150.5,150.41,0.51]
[1718282394597,100.0,150.52,150.41,45.51]
[1718282395105,100.0,150.5,150.41,0.51]
[1718282395271,100.0,150.52,150.41,0.51]
[1718282395475,100.0,150.52,150.42,0.17]
[1718282395780,100.0,150.52,150.43,0.17]
[1718282396086,100.0,150.52,150.43,0.51]
[1718282396290,100.0,150.5,150.43,0.17]
[1718282396467,100.0,150.5,150.41,0.17]
[1718282396666,100.0,150.48,150.4,6.1831]
[1718282396866,100.0,150.5,150.4,6.1831]
[1718282397884,100.0,150.5,150.41,0.17]
[1718282398082,100.0,150.48,150.4,6.1831]
[1718282398998,100.0,150.46,150.4,6.1831]
[1718282399202,45.17,150.47,150.37,15.526]
[1718282399203,100.0,150.44,150.37,15.526]
[1718282400073,100.0,150.46,150.37,15.526]
[1718282400403,100.0,150.48,150.37,15.526]
[1718282400609,20.0,150.47,150.37,15.526]
[1718282400899,100.0,150.48,150.38,45.68]
[1718282401407,100.0,150.48,150.39,0.17]
[1718282401581,100.0,150.46,150.38,0.51]
[1718282401904,100.0,150.46,150.38,0.34]
[1718282402104,100.0,150.46,150.37,15.526]
[1718282402421,100.0,150.48,150.38,0.17]
[1718282402617,100.0,150.48,150.38,45.68]
[1718282402908,100.0,150.5,150.38,45.68]
[1718282403397,100.0,150.48,150.38,45.68]
[1718282403610,100.0,150.46,150.38,0.68]
[1718282403780,100.0,150.48,150.38,0.51]
[1718282403984,100.0,150.5,150.39,0.17]
[1718282404316,100.0,150.52,150.4,0.17]
[1718282404478,100.0,150.52,150.4,0.34]
[1718282404679,100.0,150.52,150.42,0.17]
[1718282404891,100.0,150.52,150.44,0.17]
[1718282405087,100.0,150.54,150.44,0.51]
[1718282405878,100.0,150.56,150.47,0.17]
[1718282406224,100.0,150.58,150.47,45.68]
[1718282406512,106.737,150.56,150.47,0.34]
[1718282406716,106.737,150.56,150.48,0.17]
[1718282407016,6.737,150.56,150.48,0.68]
[1718282408495,100.0,150.57,150.47,0.17]
[1718282408691,100.0,150.55,150.47,0.51]
[1718282408920,119.95,150.63,150.48,0.17]
[1718282408921,100.0,150.57,150.48,0.17]
[1718282409222,100.0,150.55,150.47,0.51]
[1718282409390,100.0,150.57,150.47,0.34]
[1718282409589,100.0,150.57,150.48,0.34]
[1718282409999,100.0,150.59,150.48,0.34]
[1718282410207,100.0,150.54,150.43,6.567]
[1718282410514,100.0,150.53,150.43,6.567]
[1718282410691,2.58980007,150.58,150.43,6.567]
[1718282410692,100.0,150.55,150.43,6.567]
[1718282410889,100.0,150.58,150.43,6.567]
[1718282411092,100.0,150.58,150.47,2.4588]
[1718282411307,100.0,150.6,150.45,16.5201]
[1718282411509,100.0,150.58,150.47,0.17]
[1718282411893,100.0,150.58,150.47,45.17]
[1718282412091,100.0,150.58,150.49,0.17]
[1718282412293,100.0,150.56,150.48,0.51]
[1718282412522,100.0,150.58,150.49,0.17]
[1718282412710,116.5201,150.6,150.49,2.6285]
[1718282412907,100.0,150.58,150.49,0.17]
[1718282413115,100.0,150.56,150.48,0.51]
[1718282413441,100.0,150.56,150.47,45.17]
[1718282413442,100.0,150.54,150.45,16.5201]
[1718282414212,100.0,150.56,150.45,16.5201]
[1718282414432,100.0,150.56,150.45,18.9793]
[1718282414924,100.0,150.56,150.46,45.34]
[1718282415106,100.0,150.59,150.46,45.34]
[1718282415617,100.0,150.58,150.5,0.17]
[1718282415823,100.0,150.58,150.49,6.011]
[1718282415824,100.0,150.56,150.49,6.011]
[1718282416825,100.0,150.54,150.49,6.011]
[1718282417906,100.0,150.54,150.45,22.6653]
[1718282418127,100.0,150.59,150.45,22.6653]
[1718282418128,100.0,150.52,150.45,22.6653]
[1718282418307,100.0,150.48,150.45,16.5201]
[1718282418500,100.0,150.48,150.41,6.6098]
[1718282418731,100.0,150.5,150.41,6.6098]
[1718282419501,100.0,150.48,150.41,6.6098]
[1718282419816,100.0,150.5,150.41,6.6098]
[1718282420620,100.0,150.52,150.41,9.0696]
[1718282420938,100.0,150.56,150.43,2.4595]
[1718282421113,100.0,150.56,150.44,0.68]
[1718282421531,100.0,150.56,150.45,2.4591]
[1718282421826,100.0,150.58,150.48,0.17]
[1718282422144,100.0,150.59,150.48,6.2437]
[1718282422308,100.0,150.59,150.49,45.68]
[1718282422505,100.0,150.61,150.49,48.1386]
[1718282423027,100.0,150.61,150.51,0.17]
[1718282423250,100.0,150.61,150.51,45.68]
[1718282423421,100.0,150.61,150.51,0.68]
[1718282423620,100.0,150.63,150.53,0.17]
[1718282423821,100.0,150.61,150.53,0.51]
[1718282424038,26.581166,150.65,150.5,20.0]
[1718282424039,100.0,150.59,150.5,20.0]
[1718282424346,100.0,150.59,150.51,0.17]
[1718282424547,100.0,150.61,150.51,0.17]
[1718282424735,100.0,150.63,150.51,0.34]
[1718282424931,100.0,150.61,150.53,0.17]
[1718282425652,100.0,150.63,150.53,0.34]
[1718282425828,100.0,150.65,150.54,0.34]
[1718282426025,2.657609,150.62,150.55,0.17]
[1718282426242,100.0,150.65,150.56,15.774]
[1718282426444,11.82998977,150.7,150.58,6.4093]
[1718282426445,100.0,150.67,150.58,6.4093]
[1718282426644,2.657233,150.65,150.58,6.4093]
[1718282427144,102.657233,150.65,150.58,6.4093]
[1718282427327,2.657233,150.65,150.58,6.4093]
[1718282428540,100.0,150.61,150.56,15.774]
[1718282429148,100.0,150.63,150.56,15.774]
[1718282429327,147.657233,150.65,150.56,15.774]
[1718282429524,100.0,150.63,150.56,15.774]
[1718282430028,20.0,150.64,150.56,15.774]
[1718282430544,100.0,150.63,150.56,15.774]
[1718282431156,100.0,150.61,150.56,15.774]
[1718282431525,100.0,150.63,150.56,15.774]
[1718282432251,100.0,150.63,150.54,6.5858]
[1718282432252,100.0,150.6,150.54,6.5858]
[1718282432643,100.0,150.62,150.54,6.5858]
[1718282433652,100.0,150.6,150.54,6.5858]
[1718282433864,100.0,150.58,150.54,6.5858]
[1718282434028,100.0,150.58,150.51,16.3978]
[1718282434233,100.0,150.6,150.51,16.3978]
[1718282434555,100.0,150.58,150.51,16.3978]
[1718282434753,100.0,150.56,150.51,16.3978]
[1718282435252,100.0,150.53,150.46,15.1019]
[1718282435429,100.0,150.55,150.46,15.1019]
[1718282436832,100.0,150.52,150.46,15.1019]
[1718282437030,100.0,150.5,150.46,15.1019]
[1718282439638,100.0,150.5,150.45,6.201]
[1718282439967,100.0,150.52,150.45,6.201]
[1718282440458,100.0,150.54,150.45,6.201]
[1718282440843,100.0,150.56,150.46,0.17]
[1718282441247,100.0,150.54,150.46,0.17]
[1718282442029,100.0,150.54,150.45,6.201]
[1718282442261,100.0,150.56,150.46,0.17]
[1718282442446,100.0,150.56,150.46,0.68]
[1718282442631,100.0,150.58,150.46,0.68]
[1718282442836,100.0,150.6,150.48,0.17]
[1718282443046,100.0,150.6,150.48,45.68]
[1718282443968,100.0,150.58,150.48,45.68]
[1718282444135,100.0,150.56,150.48,0.34]
[1718282444339,100.0,150.58,150.48,0.17]
[1718282444534,100.0,150.58,150.48,0.68]
[1718282444963,100.0,150.55,150.47,15.13]
[1718282445157,145.0,150.57,150.48,0.17]
[1718282445465,100.0,150.59,150.49,0.17]
[1718282445667,100.0,150.59,150.49,0.51]
[1718282446372,100.0,150.59,150.5,0.17]
[1718282446542,100.0,150.59,150.5,0.34]
[1718282448358,0.0552924,150.62,150.48,45.0]
[1718282448359,100.0,150.57,150.48,45.0]
[1718282448557,100.0,150.57,150.49,0.17]
[1718282448748,100.0,150.57,150.48,0.68]
[1718282449459,100.0,150.55,150.47,15.13]
[1718282449661,0.34,150.6,150.47,15.13]
[1718282449662,100.0,150.57,150.47,15.13]
[1718282450965,100.0,150.59,150.48,0.68]
[1718282451146,100.0,150.59,150.48,45.68]
[1718282452164,100.0,150.57,150.48,45.68]
[1718282452354,100.0,150.57,150.48,0.51]
[1718282452946,100.0,150.55,150.48,0.34]
[1718282453162,100.0,150.55,150.47,15.13]
[1718282454165,100.0,150.53,150.47,15.13]
[1718282454568,100.0,150.51,150.47,15.13]
[1718282455262,100.0,150.51,150.45,6.201]
[1718282455591,100.0,150.49,150.45,6.201]
[1718282455765,100.0,150.51,150.45,6.201]
[1718282456575,100.0,150.49,150.42,15.8379]
[1718282457097,100.0,150.47,150.38,6.6402]
[1718282457388,100.0,150.45,150.38,6.6402]
[1718282458000,100.0,150.43,150.38,6.6402]
[1718282458303,100.0,150.43,150.37,15.602]
[1718282458470,0.17,150.47,150.37,15.602]
[1718282458471,100.0,150.41,150.37,15.602]
[1718282458667,100.0,150.43,150.37,15.602]
[1718282459295,100.0,150.4,150.34,6.1448]
[1718282460289,100.0,150.42,150.34,6.1448]
[1718282460602,100.0,150.4,150.34,6.1448]
[1718282460770,100.0,150.38,150.33,8.68302935]
[1718282461373,100.0,150.35,150.33,8.68302935]
[1718282461794,45.51,150.34,150.33,8.68302935]
[1718282461972,45.68,150.34,150.33,8.68302935]
[1718282462394,100.0,150.29,150.21,21.7912]
[1718282462630,165.63,150.34,150.21,21.7912]
[1718282462631,100.0,150.27,150.21,21.7912]
[1718282463499,100.0,150.32,150.21,21.7912]
[1718282464086,100.0,150.3,150.21,21.7912]
[1718282464281,100.0,150.28,150.21,21.7912]
[1718282464486,100.0,150.26,150.21,21.7912]
[1718282465000,100.0,150.28,150.21,21.7912]
[1718282465302,100.17,150.26,150.16,6.5488]
[1718282465505,145.51,150.26,150.16,6.5488]
[1718282465796,145.51,150.26,150.1,9.82553366]
[1718282465797,100.0,150.18,150.11,6.5488]
[1718282466595,100.0,150.17,150.1,25.37783366]
[1718282467083,100.0,150.24,150.1,25.37783366]
[1718282467291,100.0,150.22,150.1,25.37783366]
[1718282467500,100.17,150.25,150.11,20.0]
[1718282467709,100.0,150.31,150.13,16.2245]
[1718282468027,12.9619,150.37,150.13,16.2245]
[1718282468028,100.0,150.33,150.21,0.17]
[1718282468314,100.0,150.33,150.21,20.51]
[1718282468517,100.0,150.38,150.23,0.17]
[1718282468817,100.0,150.41,150.27,2.6322]
[1718282469107,259.4,150.46,150.32,2.4613]
[1718282469108,100.0,150.46,150.32,2.4613]
[1718282469404,100.0,150.49,150.35,0.17]
[1718282469577,6.77541074,150.45,150.35,65.51]
[1718282469777,115.5771,150.57,150.35,65.51]
[1718282469778,100.0,150.52,150.38,0.17]
[1718282470077,100.0,150.5,150.38,65.68]
[1718282470409,106.7820745,150.52,150.39,2.4602]
[1718282470707,106.7820745,150.52,150.4,0.68]
[1718282470708,100.0,150.52,150.4,0.68]
[1718282470884,100.0,150.54,150.4,2.97]
[1718282471082,29.68,150.6,150.4,2.97]
[1718282471083,100.0,150.56,150.41,0.17]
[1718282471300,100.0,150.58,150.44,2.6294]
[1718282471577,29.68,150.64,150.46,0.17]
[1718282471578,100.0,150.61,150.46,0.17]
[1718282471780,100.0,150.59,150.46,0.17]
[1718282471996,100.8040888,150.62,150.48,0.17]
[1718282472201,100.8040888,150.62,150.48,65.68]
[1718282472401,0.8040888,150.62,150.52,6.2661]
[1718282472587,0.8040888,150.62,150.54,0.17]
[1718282473178,0.8040888,150.62,150.54,2.6277]
[1718282473405,0.8040888,150.62,150.56,0.17]
[1718282473613,0.8040888,150.62,150.56,0.51]
[1718282473831,0.8040888,150.62,150.53,65.34]
[1718282473832,100.8040888,150.62,150.53,45.34]
[1718282474108,0.8040888,150.62,150.54,2.6277]
[1718282474283,100.0,150.71,150.57,2.4571]
[1718282474604,100.0,150.69,150.59,0.17]
[1718282474913,100.0,150.67,150.59,0.17]
[1718282475400,100.0,150.62,150.52,6.0961]
[1718282475729,0.17,150.59,150.47,16.2588]
[1718282475888,100.0,150.57,150.47,16.2588]
[1718282476420,100.0,150.53,150.47,16.2588]
[1718282476720,100.0,150.54,150.44,6.1943]
[1718282476890,120.0,150.53,150.44,6.1943]
[1718282477083,100.0,150.51,150.39,16.042]
[1718282477324,120.0,150.53,150.39,16.042]
[1718282477506,100.0,150.51,150.39,16.042]
[1718282477703,100.0,150.49,150.39,16.042]
[1718282478017,100.0,150.47,150.39,16.042]
[1718282478218,100.0,150.49,150.39,16.042]
[1718282479223,100.0,150.53,150.42,2.4597]
[1718282479509,100.0,150.52,150.43,0.34]
[1718282479711,100.0,150.5,150.4,0.17]
[1718282480010,0.34,150.58,150.4,65.51]
[1718282480011,100.0,150.52,150.4,65.51]
[1718282480192,100.0,150.54,150.4,65.51]
[1718282480394,100.0,150.54,150.4,67.9699]
[1718282480594,100.0,150.54,150.42,0.17]
[1718282480790,100.0,150.54,150.42,2.9697]
[1718282481001,100.0,150.54,150.42,0.34]
[1718282481209,100.0,150.56,150.44,0.17]
[1718282482017,100.0,150.58,150.48,0.17]
[1718282482189,100.0,150.56,150.44,0.34]
[1718282482588,100.0,150.58,150.46,0.17]
[1718282482792,259.4,150.62,150.46,0.34]
[1718282482793,100.0,150.6,150.46,0.34]
[1718282482997,100.0,150.6,150.48,0.17]
[1718282483200,359.4,150.62,150.48,0.34]
[1718282483400,100.0,150.6,150.5,0.17]
[1718282483619,100.0,150.6,150.49,0.34]
[1718282483797,359.4,150.62,150.51,0.17]
[1718282484116,100.0,150.58,150.49,0.17]
[1718282484526,100.0,150.6,150.49,0.17]
[1718282485036,100.0,150.58,150.49,0.17]
[1718282485525,100.0,150.58,150.48,0.17]
[1718282485854,100.0,150.56,150.49,0.17]
[1718282486131,100.0,150.54,150.41,20.0]
[1718282486308,100.0,150.54,150.39,16.042]
[1718282486510,100.0,150.54,150.42,2.4597]
[1718282486717,100.0,150.54,150.41,2.4598]
[1718282486919,6.77072623,150.58,150.39,16.042]
[1718282486920,100.0,150.52,150.39,16.042]
[1718282487314,0.17,150.55,150.39,16.042]
[1718282487315,100.0,150.54,150.39,16.042]
[1718282487499,20.0,150.53,150.4,20.0]
[1718282488103,20.0,150.53,150.41,0.17]
[1718282488406,100.0,150.53,150.43,0.17]
[1718282488600,0.17,150.55,150.42,0.51]
[1718282488601,100.0,150.51,150.42,0.51]
[1718282488800,100.17,150.55,150.42,0.17]
[1718282489003,100.0,150.53,150.43,0.17]
[1718282489216,100.0,150.5,150.39,16.042]
[1718282489454,100.17,150.52,150.39,16.042]
[1718282489602,100.17,150.52,150.4,20.0]
[1718282489603,100.0,150.52,150.4,20.0]
[1718282489804,100.0,150.54,150.4,20.0]
[1718282490012,20.0,150.53,150.4,22.46]
[1718282490213,100.0,150.52,150.4,20.0]
[1718282490413,100.0,150.52,150.41,0.17]
[1718282490612,20.0,150.53,150.41,45.68]
[1718282490836,100.0,150.52,150.43,0.17]
[1718282491031,100.0,150.5,150.41,0.51]
[1718282491339,100.0,150.5,150.39,16.042]
[1718282492346,100.0,150.52,150.39,16.042]
[1718282492642,386.3,150.54,150.4,65.51]
[1718282492851,386.3,150.54,150.41,0.17]
[1718282493152,100.0,150.53,150.41,0.17]
[1718282493520,386.3,150.54,150.41,0.17]
[1718282493844,100.0,150.53,150.41,0.17]
[1718282494638,100.0,150.51,150.41,0.17]
[1718282494853,100.0,150.49,150.39,16.042]
[1718282495339,151.92703614,150.53,150.39,18.5021]
[1718282495525,100.0,150.51,150.39,16.042]
[1718282496220,100.0,150.51,150.41,0.17]
[1718282496425,100.0,150.51,150.41,45.17]
[1718282496728,20.0,150.52,150.41,45.17]
[1718282496729,100.0,150.49,150.41,0.17]
[1718282496939,100.0,150.49,150.39,16.042]
[1718282497254,100.0,150.45,150.39,16.042]
[1718282497618,100.0,150.47,150.39,16.042]
[1718282498040,20.0,150.46,150.39,16.042]
[1718282498652,100.0,150.49,150.4,0.17]
[1718282498839,100.0,150.49,150.4,0.51]
[1718282499149,486.3,150.51,150.4,45.51]
[1718282499468,20.0,150.5,150.41,0.17]
[1718282500521,486.3,150.51,150.41,0.51]
[1718282500725,486.3,150.51,150.42,0.17]
[1718282501257,486.3,150.51,150.41,0.51]
[1718282501644,100.0,150.49,150.41,0.51]
[1718282502426,100.0,150.47,150.39,16.042]
[1718282503062,20.0,150.46,150.39,16.042]
[1718282504554,20.0,150.48,150.39,16.042]
[1718282504742,100.0,150.47,150.39,16.042]
[1718282505071,20.0,150.46,150.39,16.042]
[1718282505373,486.3,150.53,150.4,0.17]
[1718282505668,100.0,150.53,150.4,45.68]
[1718282507152,100.0,150.51,150.4,45.68]
[1718282507568,20.0,150.5,150.4,45.68]
[1718282507773,20.0,150.52,150.4,45.68]
[1718282508442,100.0,150.51,150.4,45.68]
[1718282508646,100.0,150.49,150.4,45.34]
[1718282509056,100.0,150.49,150.39,16.042]
[1718282510173,20.0,150.48,150.39,16.042]
[1718282510376,20.0,150.48,150.4,0.51]
[1718282511083,20.0,150.48,150.4,45.51]
[1718282511247,106.75762553,150.53,150.41,0.17]
[1718282511449,100.0,150.51,150.41,0.17]
[1718282511879,20.0,150.52,150.41,0.17]
[1718282512772,100.0,150.53,150.41,0.17]
[1718282513353,100.0,150.51,150.41,0.17]
[1718282513753,100.0,150.51,150.39,16.042]
[1718282514971,100.0,150.53,150.4,45.34]
[1718282515158,100.0,150.53,150.42,0.17]
[1718282515159,20.0,150.52,150.42,0.17]
[1718282515357,20.0,150.52,150.42,0.34]
[1718282515663,20.0,150.52,150.43,0.34]
[1718282516367,20.0,150.52,150.44,0.17]
[1718282516557,20.0,150.52,150.44,0.34]
[1718282516753,20.0,150.52,150.43,0.34]
[1718282517879,20.0,150.52,150.44,0.17]
[1718282518496,100.0,150.53,150.44,0.34]
[1718282518657,100.0,150.53,150.45,0.34]
[1718282518861,100.0,150.53,150.46,0.17]
[1718282519483,100.0,150.53,150.45,0.34]
[1718282519673,259.4,150.54,150.46,6.4912]
[1718282519986,259.4,150.54,150.47,0.17]
[1718282520282,100.0,150.55,150.46,6.3212]
[1718282520997,100.0,150.53,150.46,6.3212]
[1718282521704,100.0,150.53,150.41,20.0]
[1718282521705,100.0,150.5,150.41,6.6045]
[1718282521901,100.17,150.52,150.41,6.6045]
[1718282522410,100.0,150.5,150.41,6.6045]
[1718282522619,100.17,150.52,150.41,6.6045]
[1718282522822,100.0,150.52,150.41,6.6045]
[1718282522977,0.17,150.53,150.41,6.6045]
[1718282523185,106.75320358,150.55,150.42,2.4597]
[1718282523186,100.0,150.55,150.42,2.4597]
[1718282523385,100.0,150.55,150.41,6.6045]
[1718282523577,100.0,150.55,150.42,45.51]
[1718282523800,20.0,150.54,150.42,45.51]
[1718282524013,20.0,150.54,150.43,0.17]
[1718282524171,100.0,150.57,150.43,0.34]
[1718282524378,100.0,150.57,150.45,0.17]
[1718282524683,106.75265573,150.57,150.45,0.34]
[1718282524880,100.0,150.55,150.41,6.6045]
[1718282525295,100.0,150.55,150.42,20.0]
[1718282525498,100.0,150.57,150.42,24.9194]
[1718282525784,100.0,150.57,150.45,16.168]
[1718282525994,100.0,150.57,150.47,0.17]
[1718282526199,100.0,150.59,150.47,0.34]
[1718282526411,20.0,150.58,150.49,0.17]
[1718282526591,100.0,150.59,150.49,0.68]
[1718282526915,100.0,150.59,150.49,0.34]
[1718282527089,100.0,150.59,150.5,0.17]
[1718282527288,100.0,150.61,150.51,6.5941]
[1718282527485,100.0,150.59,150.51,6.5941]
[1718282528317,20.0,150.6,150.52,0.17]
[1718282528517,100.0,150.6,150.52,0.17]
[1718282528681,100.0,150.58,150.51,6.5941]
[1718282528876,100.0,150.56,150.47,6.6028]
[1718282529588,100.0,150.58,150.47,6.6028]
[1718282529804,100.0,150.56,150.47,6.6028]
[1718282530008,100.0,150.54,150.47,6.6028]
[1718282530320,100.34,150.57,150.47,6.6028]
[1718282530321,100.0,150.56,150.47,6.6028]
[1718282531217,100.0,150.53,150.47,6.6028]
[1718282531375,100.0,150.53,150.45,16.168]
[1718282531376,100.0,150.51,150.45,16.168]
[1718282531806,100.0,150.49,150.42,6.0113]
[1718282532881,45.34,150.52,150.42,6.0113]
[1718282532882,100.0,150.47,150.42,6.0113]
[1718282533086,100.0,150.47,150.4,16.58]
[1718282533293,100.0,150.47,150.37,6.1717]
[1718282533294,100.0,150.43,150.37,6.1717]
[1718282533500,20.0,150.42,150.37,6.1717]
[1718282533712,100.0,150.43,150.37,6.1717]
[1718282534222,100.0,150.45,150.37,6.1717]
[1718282534405,100.0,150.43,150.37,6.1717]
[1718282534807,100.0,150.45,150.37,6.1717]
[1718282535102,100.0,150.43,150.37,6.1717]
[1718282535315,100.0,150.41,150.35,15.1445]
[1718282535623,100.0,150.43,150.35,15.1445]
[1718282535792,100.0,150.42,150.35,15.1445]
[1718282536523,100.0,150.44,150.35,15.1445]
[1718282537105,100.0,150.46,150.35,15.1445]